bitfinex/quotes_ETHUSD_20250129
["timestamp","ask_amount","ask_price","bid_price","bid_amount"]
[1738152676059,0.63911883,3137.8,3137.7,1.3655]
[1738152676492,0.63911883,3137.8,3137.7,1.46814176]
[1738152676875,3.82605883,3137.8,3137.7,1.46814176]
[1738152681101,3.82605883,3137.8,3137.7,0.66764176]
[1738152682303,3.86036896,3137.8,3137.7,0.10264176]
[1738152682504,3.86036896,3137.8,3137.7,0.38664176]
[1738152682798,3.86036896,3137.8,3137.7,0.38655218]
[1738152683000,3.82605883,3137.8,3137.7,0.38655218]
[1738152683917,3.82605883,3137.8,3137.7,0.10255218]
[1738152684327,3.18704,3137.7,3137.6,0.0075]
[1738152685801,3.18704,3137.7,3137.6,0.015]
[1738152685998,3.82605883,3137.8,3137.6,0.015]
[1738152686202,3.18704,3137.7,3137.6,0.015]
[1738152686786,3.82605883,3137.8,3137.6,0.015]
[1738152687718,3.82605883,3137.8,3137.7,0.10255218]
[1738152691205,3.82605883,3137.8,3137.7,0.11005218]
[1738152691509,3.82605883,3137.8,3137.7,0.66005218]
[1738152692504,0.63911883,3137.8,3137.7,0.66755218]
[1738152695905,3.18676,3138.0,3137.8,0.5575]
[1738152696429,3.18676,3138.0,3137.9,0.65995486]
[1738152696789,3.18676,3138.0,3137.9,0.66745486]
[1738152700326,3.82615751,3138.0,3137.9,0.66745486]
[1738152709353,3.82615751,3138.0,3137.9,35.66745486]
[1738152710534,4.82390469,3138.7,3138.2,0.015]
[1738152710748,3.18613,3138.6,3138.2,0.565]
[1738152711072,3.18623,3138.5,3138.4,0.0075]
[1738152711534,3.18623,3138.5,3138.4,0.10957916]
[1738152713938,3.83076803,3138.5,3138.4,0.10957916]
[1738152714138,0.64453803,3138.5,3138.4,1.42787916]
[1738152714504,0.64453803,3138.5,3138.4,0.87787916]
[1738152716839,0.64453803,3138.5,3138.4,1.42787916]
[1738152720165,3.83076803,3138.5,3138.4,0.66707916]
[1738152720461,0.64453803,3138.5,3138.4,0.66707916]
[1738152720660,3.18598,3138.8,3138.4,0.66707916]
[1738152720661,3.18611,3138.7,3138.4,0.66707916]
[1738152720830,3.18616,3138.6,3138.4,0.66707916]
[1738152721232,3.18623,3138.5,3138.4,0.66707916]
[1738152721414,3.22054013,3138.5,3138.4,0.10957916]
[1738152722468,3.18623,3138.5,3138.4,0.10957916]
[1738152725460,0.63856577,3138.6,3138.4,0.10957916]
[1738152725782,3.82469577,3138.6,3138.4,0.10957916]
[1738152727831,3.82469577,3138.6,3138.5,0.282]
[1738152728163,0.63856577,3138.6,3138.5,0.39102216]
[1738152729346,0.63856577,3138.6,3138.5,0.94102216]
[1738152729655,3.82469577,3138.6,3138.5,0.94102216]
[1738152730361,0.63856577,3138.6,3138.5,0.94102216]
[1738152732283,3.18593,3138.8,3138.6,0.565]
[1738152732623,0.8245,3139.0,3138.6,0.565]
[1738152732624,0.8245,3139.0,3138.8,0.0075]
[1738152732827,3.18582,3138.9,3138.8,0.0075]
[1738152733450,3.22013013,3138.9,3138.7,0.0075]
[1738152735063,3.18582,3138.9,3138.7,0.0075]
[1738152735360,3.80955071,3138.9,3138.7,0.0075]
[1738152737031,6.99544071,3138.9,3138.7,0.0075]
[1738152737744,3.80955071,3138.9,3138.7,0.0075]
[1738152738471,3.18593,3138.8,3138.7,0.0075]
[1738152739960,0.62373071,3138.9,3138.7,0.0075]
[1738152740180,3.80956071,3138.9,3138.7,0.0075]
[1738152742175,3.80956071,3138.9,3138.7,0.21448442]
[1738152743583,3.80956071,3138.9,3138.8,0.5575]
[1738152745750,0.62373071,3138.9,3138.8,0.565]
[1738152747675,0.62373071,3138.9,3138.8,0.66605766]
[1738152750109,3.18603,3138.7,3138.6,0.3821286]
[1738152751854,4.63490071,3138.9,3138.7,0.0075]
[1738152752054,3.80960071,3138.9,3138.7,0.5575]
[1738152752255,3.80960071,3138.9,3138.8,0.10855766]
[1738152752763,0.62373071,3138.9,3138.8,0.10855766]
[1738152752976,3.80955071,3138.9,3138.8,0.10855766]
[1738152754095,0.62373071,3138.9,3138.8,0.66605766]
[1738152754550,3.80955071,3138.9,3138.8,0.66605766]
[1738152754754,4.64115071,3138.9,3138.8,0.66605766]
[1738152756467,4.64115071,3138.9,3138.8,0.10855766]
[1738152756654,4.67546084,3138.9,3138.8,0.10855766]
[1738152761994,4.64115071,3138.9,3138.8,0.10855766]
[1738152766465,4.67546084,3138.9,3138.8,0.10105766]
[1738152766781,3.18601,3138.8,3138.7,0.0075]
[1738152767168,3.18603,3138.7,3138.6,0.281]
[1738152767388,3.18603,3138.7,3138.6,0.2885]
[1738152768634,7.82706071,3138.9,3138.6,0.2885]
[1738152768910,3.18595,3138.8,3138.6,0.2885]
[1738152770703,1.45533071,3138.9,3138.6,0.2885]
[1738152770884,4.64116071,3138.9,3138.6,0.2885]
[1738152773117,3.80956071,3138.9,3138.6,0.2885]
[1738152778014,3.80956071,3138.9,3138.7,0.10097726]
[1738152784437,3.22024013,3138.8,3138.7,0.10097726]
[1738152784659,3.1866,3138.2,3137.8,0.7974]
[1738152784817,3.22102013,3138.1,3137.8,0.281]
[1738152784999,3.22102013,3138.1,3137.9,0.09785839]
[1738152785203,3.18674,3138.0,3137.9,0.09785839]
[1738152785432,0.03431013,3138.0,3137.8,0.281]
[1738152785636,0.03431013,3138.0,3137.9,0.09785312]
[1738152785943,3.22105013,3138.0,3137.9,0.09785312]
[1738152786146,0.03431013,3138.0,3137.9,0.09785312]
[1738152786512,3.22105013,3138.0,3137.9,0.09785312]
[1738152787739,0.03431013,3138.1,3137.9,0.09785312]
[1738152787926,3.18662,3138.2,3137.9,0.37885312]
[1738152788133,3.22093013,3138.2,3137.9,0.37885312]
[1738152788630,3.18662,3138.2,3137.9,0.37885312]
[1738152789054,3.22093013,3138.2,3137.9,0.37885312]
[1738152791158,3.18662,3138.2,3137.9,0.37885312]
[1738152791359,0.65037798,3138.0,3137.9,0.37885312]
[1738152792435,3.83711798,3138.0,3137.9,0.37885312]
[1738152793578,0.65037798,3138.0,3137.9,0.37885312]
[1738152794296,3.1865,3138.3,3138.0,0.0075]
[1738152794592,0.6321401,3138.1,3138.0,0.0075]
[1738152795695,3.85309023,3138.1,3138.0,0.0075]
[1738152796293,3.18674,3138.0,3137.9,0.281]
[1738152796762,3.94034,3138.0,3137.9,0.281]
[1738152797100,3.97465013,3138.0,3137.9,0.281]
[1738152798367,3.94034,3138.0,3137.9,0.281]
[1738152800001,3.94034,3138.0,3137.7,0.0075]
[1738152800302,3.18674,3138.0,3137.7,0.663724]
[1738152800707,0.6321401,3138.1,3137.9,0.7652]
[1738152800906,0.7714,3138.6,3137.9,0.7652]
[1738152800907,3.18609,3138.7,3138.1,0.0075]
[1738152801092,3.18621,3138.6,3138.3,0.0075]
[1738152801401,8.00990469,3138.8,3138.3,0.953433]
[1738152801605,4.82390469,3138.8,3138.4,0.0075]
[1738152801790,0.03431013,3138.7,3138.4,0.0075]
[1738152801997,3.18614,3138.6,3138.3,0.953433]
[1738152803687,3.22045013,3138.6,3138.3,0.953433]
[1738152804801,3.18633,3138.4,3138.0,3.8022]
[1738152805114,0.03431013,3138.6,3137.7,8.16060328]
[1738152805115,3.18664,3138.1,3137.7,1.169924]
[1738152805309,0.03431013,3138.0,3137.8,0.281]
[1738152805512,3.18684,3137.9,3137.8,0.2885]
[1738152806074,3.18684,3137.9,3137.8,0.0075]
[1738152806274,3.18684,3137.9,3137.8,0.2885]
[1738152807214,3.22108013,3138.0,3137.8,0.2885]
[1738152807712,3.22108013,3138.0,3137.9,0.09500463]
[1738152808988,3.86374463,3138.0,3137.9,0.09500463]
[1738152809708,3.8294345,3138.0,3137.9,0.09500463]
[1738152809876,0.6426645,3138.0,3137.9,0.09500463]
[1738152810077,0.6426645,3138.0,3137.9,0.0075]
[1738152810413,0.6426645,3138.0,3137.9,0.10263104]
[1738152811202,0.6426645,3138.0,3137.9,0.38363104]
[1738152812521,0.6426645,3138.0,3137.9,0.94113104]
[1738152812726,0.6426645,3138.0,3137.9,1.48841114]
[1738152813730,0.6426645,3138.0,3137.9,0.94113104]
[1738152818929,5.6426645,3138.0,3137.9,0.94113104]
[1738152820924,5.6426645,3138.0,3137.9,0.38363104]
[1738152821098,8.86371463,3138.0,3137.9,0.38363104]
[1738152821299,8.8294045,3138.0,3137.9,0.38363104]
[1738152822432,8.8294045,3138.0,3137.9,0.09513104]
[1738152822638,8.8294045,3138.0,3137.9,0.37613104]
[1738152822935,8.8294045,3138.0,3137.9,0.37632594]
[1738152823497,8.8294045,3138.0,3137.9,0.281]
[1738152823702,8.8294045,3138.0,3137.9,0.37632594]
[1738152831545,8.8294045,3138.0,3137.9,1.76752594]
[1738152831546,5.6426645,3138.0,3137.9,1.76752594]
[1738152835661,5.6426645,3138.0,3137.9,0.94132594]
[1738152837464,8.8294045,3138.0,3137.9,0.38382594]
[1738152840762,8.8294045,3138.0,3137.9,0.37632594]
[1738152841531,10.10609895,3138.0,3137.9,0.09532594]
[1738152841736,0.7509,3137.8,3137.3,0.28]
[1738152841931,0.7509,3137.8,3137.4,0.09997866]
[1738152841932,6.37464,3137.5,3137.4,0.09997866]
[1738152842454,3.18731,3137.5,3137.4,0.09997866]
[1738152843674,6.37419,3137.7,3137.4,0.87167866]
[1738152845461,3.18716,3137.6,3137.4,0.87167866]
[1738152846372,3.18716,3137.6,3137.4,0.09997866]
[1738152846373,3.94505,3137.5,3137.4,0.09997866]
[1738152846574,3.97936013,3137.5,3137.4,0.09997866]
[1738152847142,3.18725,3137.5,3137.4,0.09997866]
[1738152848273,3.22156013,3137.5,3137.4,0.09247866]
[1738152848741,3.18725,3137.5,3137.4,0.09247866]
[1738152850676,3.8127024,3137.5,3137.4,0.09247866]
[1738152854743,3.84701253,3137.5,3137.4,0.09247866]
[1738152855800,4.67251253,3137.5,3137.4,0.09247866]
[1738152858511,4.6382024,3137.5,3137.4,0.09247866]
[1738152862093,4.67251253,3137.5,3137.4,0.09247866]
[1738152863415,3.8127024,3137.5,3137.4,0.09247866]
[1738152864419,0.6254524,3137.5,3137.4,0.09247866]
[1738152865213,3.9455,3137.9,3137.5,0.0075]
[1738152865422,9.82390469,3138.0,3137.7,0.5575]
[1738152865568,13.01067469,3138.0,3137.7,0.5575]
[1738152865767,13.01067469,3138.0,3137.8,0.09285305]
[1738152865967,9.82390469,3138.0,3137.8,0.09285305]
[1738152866369,9.82390469,3138.0,3137.9,0.0075]
[1738152866594,10.45588241,3138.0,3137.9,0.10031756]
[1738152869207,5.63197772,3138.0,3137.9,0.10031756]
[1738152873813,5.63197772,3138.0,3137.9,0.65781756]
[1738152874002,5.63197772,3138.0,3137.9,1.44921756]
[1738152879805,5.63197772,3138.0,3137.9,0.65781756]
[1738152884936,8.81871772,3138.0,3137.9,0.09281756]
[1738152885084,8.81871772,3138.0,3137.9,0.37181756]
[1738152885286,8.81871772,3138.0,3137.9,0.279]
[1738152885521,8.81871772,3138.0,3137.9,0.37163312]
[1738152886625,8.81871772,3138.0,3137.9,0.37913312]
[1738152887618,8.81871772,3138.0,3137.9,0.09263312]
[1738152887824,10.82715349,3138.0,3137.8,0.279]
[1738152888024,10.82715349,3138.0,3137.9,0.09263312]
[1738152891040,9.62661772,3138.0,3137.9,0.09263312]
[1738152892507,8.81871772,3138.0,3137.9,0.09263312]
[1738152892944,5.63197772,3138.0,3137.9,0.09263312]
[1738152893337,5.63197772,3138.0,3137.9,0.65013312]
[1738152902173,9.60741772,3138.0,3137.9,0.09263312]
[1738152902357,3.18689,3137.9,3137.6,0.279]
[1738152902558,3.18695,3137.8,3137.6,0.0075]
[1738152902875,3.18695,3137.8,3137.7,0.279]
[1738152906601,3.22126013,3137.8,3137.7,0.279]
[1738152906797,3.22126013,3137.8,3137.6,0.2865]
[1738152906798,3.18704,3137.7,3137.6,0.2865]
[1738152907208,3.22135013,3137.7,3137.6,0.2865]
[1738152910176,0.7605,3137.8,3137.6,0.2865]
[1738152910392,3.22123013,3137.9,3137.6,0.2865]
[1738152911001,1.31990091,3137.9,3137.6,0.2865]
[1738152911210,3.18704,3137.7,3137.6,0.2865]
[1738152911409,3.22135013,3137.7,3137.6,0.2865]
[1738152912028,3.18735,3137.4,3137.2,0.7691]
[1738152912207,0.8026,3137.6,3137.3,0.279]
[1738152912529,3.18735,3137.4,3137.3,0.279]
[1738152912719,3.18735,3137.4,3137.3,0.8365]
[1738152912915,0.03431013,3137.5,3137.3,0.8365]
[1738152913234,3.98974,3137.6,3137.4,0.0075]
[1738152913536,3.95311,3137.8,3137.4,0.565]
[1738152913697,11.37361,3138.0,3137.4,3.75235]
[1738152914055,3.18694,3137.8,3137.4,0.565]
[1738152914611,0.63875577,3137.6,3137.4,0.565]
[1738152925130,3.18694,3137.8,3137.4,0.565]
[1738152925131,3.18684,3137.9,3137.4,0.565]
[1738152925346,8.18676,3138.0,3137.6,0.565]
[1738152925957,0.63864045,3137.9,3137.6,0.565]
[1738152926560,0.63864045,3137.9,3137.8,0.0075]
[1738152926858,0.63864045,3137.9,3137.8,0.565]
[1738152927628,0.63864045,3137.9,3137.8,0.65753687]
[1738152928073,5.0,3138.0,3137.8,0.65753687]
[1738152928441,5.63462304,3138.0,3137.8,0.65753687]
[1738152928965,5.63462304,3138.0,3137.8,1.24988941]
[1738152929275,5.63462304,3138.0,3137.9,1.3278]
[1738152929276,5.0,3138.0,3137.9,1.3278]
[1738152929565,5.0,3138.0,3137.9,1.42030138]
[1738152929766,8.18674,3138.0,3137.9,0.65000138]
[1738152930233,8.18674,3138.0,3137.9,0.65750138]
[1738152932370,10.219959,3138.0,3137.9,0.09250138]
[1738152932866,3.18746,3137.3,3136.8,5.38]
[1738152933067,3.18746,3137.3,3137.0,0.015]
[1738152933268,3.18746,3137.3,3137.0,3.565]
[1738152933481,3.18738,3137.4,3137.0,3.565]
[1738152934535,3.18718,3137.6,3137.0,7.730844]
[1738152935036,3.18718,3137.6,3137.0,9.04786256]
[1738152936149,3.18727,3137.5,3137.0,9.04786256]
[1738152936335,3.22158013,3137.5,3137.0,9.04786256]
[1738152936537,3.18737,3137.4,3137.0,4.543104]
[1738152936851,3.18737,3137.4,3137.0,3.565]
[1738152938570,3.18746,3137.3,3137.1,0.278]
[1738152938758,3.18761,3137.2,3136.9,0.7502]
[1738152938959,3.18761,3137.2,3136.7,3.188]
[1738152938960,0.03431013,3137.1,3137.0,0.2855]
[1738152939151,0.03431013,3137.1,3137.0,0.0075]
[1738152939349,3.1878,3137.0,3136.6,3.0]
[1738152939689,3.22217013,3136.9,3136.7,0.278]
[1738152940175,3.18786,3136.9,3136.8,0.0075]
[1738152940550,3.9591,3137.0,3136.8,0.0075]
[1738152940741,7.14694,3137.0,3136.8,0.0075]
[1738152940941,3.18786,3136.9,3136.8,0.0075]
[1738152942578,3.18786,3136.9,3136.8,0.10068706]
[1738152942743,3.9591,3137.0,3136.8,0.10068706]
[1738152942939,3.9591,3137.0,3136.8,0.09318706]
[1738152942940,3.22217013,3136.9,3136.8,0.09318706]
[1738152943449,3.18807,3136.7,3136.3,2.8185]
[1738152943646,3.18807,3136.7,3136.5,0.5575]
[1738152944284,3.18786,3136.9,3136.5,0.5575]
[1738152944499,3.18796,3136.8,3136.5,0.5575]
[1738152945780,3.1795117,3136.8,3136.6,0.278]
[1738152946551,3.1795117,3136.8,3136.4,0.5575]
[1738152946552,3.18816,3136.7,3136.4,0.5575]
[1738152946756,3.18822,3136.6,3136.5,0.278]
[1738152946953,3.18822,3136.6,3136.2,3.565]
[1738152947152,3.18828,3136.5,3136.4,0.5575]
[1738152947358,3.18822,3136.6,3136.4,0.5575]
[1738152947557,3.18822,3136.6,3136.4,0.0075]
[1738152947558,3.97263013,3136.6,3136.4,0.0075]
[1738152949193,3.93832,3136.6,3136.4,0.0075]
[1738152952356,0.03431013,3136.5,3136.0,0.778]
[1738152952560,3.18851,3136.3,3136.1,0.278]
[1738152952787,0.03431013,3136.2,3136.1,0.278]
[1738152953298,3.22288013,3136.2,3136.1,0.278]
[1738152953590,6.37704,3136.3,3135.9,0.0075]
[1738152953804,3.18851,3136.3,3136.0,0.278]
[1738152954171,0.03431013,3136.4,3135.8,0.55]
[1738152954469,6.37747,3136.1,3135.9,0.277]
[1738152954799,0.03431013,3136.0,3135.9,0.8345]
[1738152954996,0.03431013,3136.1,3136.0,0.0075]
[1738152955297,3.18851,3136.3,3136.0,0.0075]
[1738152956971,8.79608469,3136.5,3136.0,0.5575]
[1738152957181,8.79608469,3136.5,3136.1,0.7583]
[1738152957595,0.65248317,3136.2,3136.1,0.7658]
[1738152959881,11.98444469,3136.5,3136.2,0.565]
[1738152959882,4.82390469,3136.5,3136.2,0.565]
[1738152960084,4.82390469,3136.5,3136.2,3.75357]
[1738152960398,4.82390469,3136.5,3136.4,1.3938]
[1738152962706,4.82390469,3136.5,3136.4,4.58216]
[1738152964295,0.8306,3137.2,3136.5,3.18826]
[1738152964501,0.8306,3137.2,3136.9,0.015]
[1738152964502,0.63729055,3137.0,3136.9,0.015]
[1738152965103,0.63729055,3137.0,3136.9,1.3587]
[1738152965355,0.827,3137.5,3137.1,0.0075]
[1738152965626,0.827,3137.5,3137.0,0.55]
[1738152965627,0.63894949,3137.3,3137.2,0.8345]
[1738152967541,3.18721,3137.6,3137.3,0.0075]
[1738152968232,0.64081137,3137.4,3137.3,0.0075]
[1738152971725,3.82816137,3137.4,3137.3,0.0075]
[1738152971935,4.58386137,3137.4,3137.3,0.0075]
[1738152972429,4.6181715,3137.4,3137.3,0.0075]
[1738152972797,4.6181715,3137.4,3137.3,0.37806815]
[1738152975630,1.4308215,3137.4,3137.3,0.37806815]
[1738152976096,0.6751215,3137.4,3137.3,0.37806815]
[1738152977332,0.64081137,3137.4,3137.3,0.37806815]
[1738152977528,0.64081137,3137.4,3137.3,0.93556815]
[1738152977735,0.64081137,3137.4,3137.3,5.30127497]
[1738152979335,6.37383,3137.9,3137.3,5.30127497]
[1738152979541,6.37383,3137.9,3137.5,0.0075]
[1738152979831,0.63883317,3137.6,3137.5,0.0075]
[1738152980444,5.0,3138.0,3137.6,0.5575]
[1738152980737,8.83400146,3138.0,3137.8,0.565]
[1738152980896,5.64725146,3138.0,3137.8,0.015]
[1738152981095,5.64725146,3138.0,3137.8,0.0075]
[1738152982596,8.83399146,3138.0,3137.8,0.0075]
[1738152983032,5.64725146,3138.0,3137.8,0.0075]
[1738152983239,3.18684,3137.9,3137.8,0.0075]
[1738152985307,4.00454,3137.9,3137.8,0.292]
[1738152985748,3.18722,3137.6,3137.3,4.15455682]
[1738152985956,3.18722,3137.6,3137.4,0.277]
[1738152986137,3.99353013,3137.6,3137.5,0.277]
[1738152986525,3.18722,3137.6,3137.5,0.277]
[1738152987538,4.04853013,3137.6,3137.5,0.277]
[1738152987747,4.04853013,3137.6,3137.5,0.36986468]
[1738152988144,4.77208814,3137.6,3137.5,0.36986468]
[1738152989646,4.04853013,3137.6,3137.5,0.36986468]
[1738152991254,4.01422,3137.6,3137.5,0.36986468]
[1738152993659,3.18722,3137.6,3137.5,0.36986468]
[1738152993962,3.18705,3137.7,3137.5,1.74126468]
[1738152997435,3.18696,3137.8,3137.5,1.74126468]
[1738152999061,8.83407146,3138.0,3137.7,0.0075]
[1738152999568,8.83407146,3138.0,3137.9,0.0075]
[1738153000054,8.83407146,3138.0,3137.9,0.10023323]
[1738153001056,5.64725146,3138.0,3137.9,0.10023323]
[1738153001260,5.64725146,3138.0,3137.9,0.90743323]
[1738153003893,5.64725146,3138.0,3137.9,1.31762755]
[1738153004544,5.64725146,3138.0,3137.9,1.87512755]
[1738153004732,5.0,3138.0,3137.9,5.06196755]
[1738153008462,5.0,3138.0,3137.9,1.87512755]
[1738153009569,5.0,3138.0,3137.9,5.06196755]
[1738153010342,5.0,3138.0,3137.9,1.87512755]
[1738153010749,5.0,3138.0,3137.9,1.34392755]
[1738153011483,5.0,3138.0,3137.9,3.34392755]
[1738153011779,5.0,3138.0,3137.9,6.53076755]
[1738153012147,5.0,3138.0,3137.9,7.28076755]
[1738153012748,5.0,3138.0,3137.9,10.28076755]
[1738153015579,2.41831249,3138.0,3137.9,10.28076755]
[1738153016356,1.60586005,3138.0,3137.9,10.28076755]
[1738153016555,0.79340761,3138.0,3137.9,10.28076755]
[1738153019759,0.38718139,3138.0,3137.9,10.28076755]
[1738153019968,0.38718139,3138.0,3137.9,15.66076755]
[1738153020995,4.00896,3139.2,3138.6,3.2011]
[1738153021289,0.64404877,3138.9,3138.8,0.0075]
[1738153021681,0.64404877,3138.9,3138.8,0.64898674]
[1738153021849,0.64404877,3138.9,3138.8,0.565]
[1738153022050,0.64404877,3138.9,3138.8,0.65648674]
[1738153023494,0.64404877,3138.9,3138.8,4.54526741]
[1738153023695,0.64404877,3138.9,3138.8,5.36536741]
[1738153024302,0.64404877,3138.9,3138.8,5.39722366]
[1738153024658,0.64404877,3138.9,3138.8,5.36536741]
[1738153025601,0.64404877,3138.9,3138.8,5.39722208]
[1738153026734,0.64404877,3138.9,3138.8,8.39722208]
[1738153026897,0.64404877,3138.9,3138.8,8.36536741]
[1738153030582,0.7621,3139.8,3139.5,0.0075]
[1738153030786,0.7621,3139.8,3139.7,0.5575]
[1738153030981,0.7621,3139.8,3139.7,0.64797776]
[1738153032074,1.38420211,3139.8,3139.7,0.64797776]
[1738153035110,0.62210211,3139.8,3139.7,0.64797776]
[1738153037088,0.62210211,3139.8,3139.7,3.83298776]
[1738153037271,0.62210211,3139.8,3139.7,1.37728754]
[1738153039104,0.62210211,3139.8,3139.7,1.65228754]
[1738153039987,0.62210211,3139.8,3139.7,1.65978754]
[1738153040225,0.62210211,3139.8,3139.7,4.84479754]
[1738153041112,0.62210211,3139.8,3139.7,1.65978754]
[1738153045097,0.62210211,3139.8,3139.7,1.65878754]
[1738153045720,0.62210211,3139.8,3139.7,1.37728754]
[1738153045939,4.63511211,3139.8,3139.7,0.09047776]
[1738153046134,4.63511211,3139.8,3139.7,0.36447776]
[1738153046434,4.66942224,3139.8,3139.7,0.3636639]
[1738153047334,4.66942224,3139.8,3139.7,0.0896639]
[1738153047639,3.99912,3139.2,3139.1,0.274]
[1738153047804,4.03343013,3139.2,3139.1,0.274]
[1738153048001,4.03343013,3139.2,3139.1,0.36088786]
[1738153048202,3.99912,3139.2,3139.1,0.274]
[1738153048440,3.99912,3139.2,3139.1,0.36088786]
[1738153050235,3.99912,3139.2,3139.1,0.08688786]
[1738153050455,4.72100501,3139.2,3139.1,0.08688786]
[1738153050744,4.72100501,3139.2,3138.0,6.71821476]
[1738153050745,0.7952,3138.8,3138.0,2.0]
[1738153050955,3.18629,3138.5,3138.1,0.37334098]
[1738153051113,3.18654,3138.2,3138.1,0.36584098]
[1738153051318,3.18654,3138.2,3138.1,0.35834098]
[1738153051503,3.22085013,3138.2,3138.1,0.35834098]
[1738153052140,3.22085013,3138.2,3138.1,0.08434098]
[1738153052439,3.18664,3138.1,3138.0,0.274]
[1738153052636,3.18654,3138.2,3138.0,0.274]
[1738153052839,0.03431013,3138.3,3138.2,0.5575]
[1738153053026,3.18601,3138.8,3138.3,0.55]
[1738153053230,3.18599,3138.8,3138.4,0.0075]
[1738153054132,0.62968285,3138.5,3138.4,0.0075]
[1738153055239,0.62968285,3138.5,3138.4,0.64226013]
[1738153055841,0.62968285,3138.5,3138.4,4.65829013]
[1738153056005,0.62968285,3138.5,3138.4,5.81079283]
[1738153057522,0.62968285,3138.5,3138.4,1.80226283]
[1738153057860,0.62968285,3138.5,3138.4,1.79476283]
[1738153062049,0.62968285,3138.5,3138.4,1.80226283]
[1738153062234,4.82390469,3139.9,3139.0,0.0075]
[1738153062235,3.18533,3139.4,3139.0,0.0075]
[1738153062751,3.18533,3139.4,3139.1,0.08454853]
[1738153063337,0.03431013,3139.5,3139.1,0.08454853]
[1738153063650,0.7521,3139.7,3139.1,0.08454853]
[1738153063651,0.7521,3139.7,3139.1,3.27016853]
[1738153063949,0.65195148,3139.4,3139.1,3.27016853]
[1738153064274,0.65195148,3139.4,3139.1,0.08454853]
[1738153065426,3.18552,3139.2,3139.1,0.08454853]
[1738153065942,3.99053013,3139.2,3139.1,0.08454853]
[1738153066113,3.99053013,3139.2,3139.0,0.274]
[1738153066322,3.18562,3139.1,3139.0,0.274]
[1738153066518,0.7707,3138.6,3138.4,0.5575]
[1738153066842,0.7707,3138.6,3138.5,0.2815]
[1738153067244,0.03431013,3138.8,3138.5,0.2815]
[1738153068456,3.95657,3138.9,3138.5,0.8315]
[1738153068854,0.03431013,3138.8,3138.5,0.8315]
[1738153070655,4.58735712,3138.9,3138.5,0.8315]
[1738153071438,0.63078712,3138.9,3138.5,4.01773]
[1738153071642,0.03431013,3139.0,3138.8,0.0075]
[1738153071842,3.86539107,3139.1,3138.8,0.0075]
[1738153073362,0.64544094,3139.1,3138.7,0.0075]
[1738153073536,0.64544094,3139.1,3138.8,3.18592]
[1738153074663,0.64544094,3139.1,3138.7,0.0075]
[1738153074962,0.64544094,3139.1,3138.5,1.0992]
[1738153074963,0.83451013,3139.0,3138.8,0.274]
[1738153075159,3.1859,3138.9,3138.8,0.274]
[1738153076566,3.22021013,3138.9,3138.8,0.274]
[1738153076936,3.98593,3139.0,3138.8,0.274]
[1738153077250,3.18582,3138.9,3138.8,0.274]
[1738153077567,7.17174,3139.0,3138.8,0.35846572]
[1738153078070,3.18582,3138.9,3138.8,0.35846572]
[1738153079576,3.73928796,3138.9,3138.8,0.08446572]
[1738153079740,3.73928796,3138.9,3138.8,0.274]
[1738153079940,3.77359809,3138.9,3138.8,0.35846572]
[1738153080564,3.18643,3138.3,3138.2,0.274]
[1738153080741,3.95673,3138.3,3138.2,0.35867859]
[1738153081334,4.70534613,3138.3,3138.2,0.08467859]
[1738153081677,3.18654,3138.2,3138.1,0.274]
[1738153082039,3.22085013,3138.2,3138.1,0.274]
[1738153082673,4.671036,3138.3,3138.1,0.274]
[1738153082674,1.484606,3138.3,3138.1,0.274]
[1738153082839,0.7703,3138.3,3138.1,0.274]
[1738153083264,3.18654,3138.2,3138.1,0.274]
[1738153083576,3.18654,3138.2,3137.1,2.7607]
[1738153083577,0.8161,3137.8,3137.1,2.7607]
[1738153083777,0.03431013,3137.7,3136.7,0.7607]
[1738153083975,0.03431013,3137.7,3136.6,2.524]
[1738153083976,3.18767,3137.1,3136.8,0.274]
[1738153084181,3.22208013,3137.0,3136.8,0.274]
[1738153084482,3.18786,3136.9,3136.8,0.274]
[1738153084681,3.18786,3136.9,3136.6,2.524]
[1738153085148,3.18786,3136.9,3136.7,0.274]
[1738153085349,3.18786,3136.9,3136.6,2.524]
[1738153085580,3.18804,3136.8,3136.7,0.273]
[1738153085783,3.18807,3136.7,3136.5,0.273]
[1738153086080,3.18786,3136.9,3136.5,0.273]
[1738153087766,3.22234013,3136.8,3136.5,0.273]
[1738153087946,3.18807,3136.7,3136.5,0.273]
[1738153088142,3.22247013,3136.6,3136.5,0.273]
[1738153089049,3.18803,3136.8,3136.5,0.273]
[1738153089255,8.01180469,3136.9,3136.5,0.273]
[1738153089848,0.03431013,3136.8,3136.5,0.273]
[1738153090165,3.22228013,3136.8,3136.5,0.273]
[1738153090544,0.03431013,3136.8,3136.5,0.273]
[1738153090767,3.22228013,3136.8,3136.5,0.273]
[1738153091182,0.03431013,3136.8,3136.5,0.273]
[1738153091346,3.18807,3136.7,3136.5,0.273]
[1738153091545,0.03431013,3136.6,3136.5,0.273]
[1738153092073,3.18807,3136.7,3136.5,0.273]
[1738153092580,0.03431013,3136.8,3136.6,0.07987258]
[1738153092786,11.19973469,3136.9,3136.5,0.273]
[1738153092990,11.19973469,3136.9,3136.6,0.07987258]
[1738153093151,4.82390469,3136.9,3136.5,0.273]
[1738153093352,4.82390469,3136.9,3136.6,0.07987258]
[1738153093547,4.82390469,3136.9,3136.5,0.61913]
[1738153093752,4.82390469,3136.9,3136.6,0.07987258]
[1738153094052,4.82390469,3136.9,3136.5,0.273]
[1738153094247,4.82390469,3136.9,3136.7,0.08109937]
[1738153094248,0.03431013,3136.8,3136.7,0.08109937]
[1738153094448,0.03431013,3136.8,3136.6,0.08113489]
[1738153094667,0.03431013,3136.8,3136.7,0.08107305]
[1738153094865,8.01183469,3136.9,3136.7,0.08107305]
[1738153095088,4.82390469,3136.9,3136.5,0.273]
[1738153095285,4.82390469,3136.9,3136.8,0.08103754]
[1738153095449,6.00855142,3136.9,3136.8,0.273]
[1738153095649,10.06042155,3136.9,3136.8,0.35403754]
[1738153095875,10.02611142,3136.9,3136.8,0.35403754]
[1738153096382,10.02611142,3136.9,3136.8,0.273]
[1738153097105,6.00855142,3136.9,3136.8,0.273]